bitfinex/quotes_ETHUSD_20240819
["timestamp","ask_amount","ask_price","bid_price","bid_amount"]
[1724070944537,0.08297299,2593.9,2593.2,2.3267]
[1724070946492,0.08297299,2593.9,2593.0,35.0]
[1724070946493,0.08297299,2593.9,2593.4,2.3795]
[1724070946880,3.85505,2594.0,2593.4,2.3795]
[1724070947520,0.08297299,2593.9,2593.4,2.3795]
[1724070948126,2.4647,2593.8,2593.1,5.3795]
[1724070948293,3.85571,2593.6,2593.1,2.3795]
[1724070948826,0.08304452,2593.5,2593.1,2.3795]
[1724070949591,3.85601,2593.4,2593.1,2.3795]
[1724070949789,0.47691997,2593.5,2592.9,7.47871982]
[1724070949790,0.39387545,2593.5,2592.9,7.47871982]
[1724070950036,3.93946022,2593.4,2592.9,7.47871982]
[1724070950329,2.41032022,2593.4,2592.8,2.4454]
[1724070950498,0.08342022,2593.4,2592.8,2.4454]
[1724070951784,6.1825,2593.7,2592.8,2.4454]
[1724070951785,10.03812,2593.7,2592.8,2.4454]
[1724070951987,3.8558,2593.5,2592.8,2.4454]
[1724070952614,0.08329502,2593.4,2592.8,2.4454]
[1724070953635,3.8561,2593.3,2592.8,2.4454]
[1724070953830,7.71233,2593.3,2592.8,2.4454]
[1724070954038,3.93953502,2593.2,2592.8,2.4454]
[1724070954264,0.7795635,2593.1,2592.8,2.4454]
[1724070955053,0.08329502,2593.0,2592.6,2.2746]
[1724070955256,3.8567,2592.9,2592.6,2.2746]
[1724070955412,3.8567,2592.9,2592.3,3.0]
[1724070955413,0.3939995,2592.8,2592.4,2.3516]
[1724070955765,0.08322943,2592.7,2592.4,2.3516]
[1724070956126,0.3939995,2592.8,2592.4,2.3516]
[1724070956314,0.08322943,2592.6,2592.4,2.3516]
[1724070956511,4.6360535,2593.1,2592.4,2.3516]
[1724070956743,0.7795635,2593.1,2592.4,2.3516]
[1724070956948,0.08322943,2593.0,2592.4,2.3516]
[1724070957126,0.08322943,2593.0,2592.4,2.91190412]
[1724070957347,0.08322943,2593.0,2592.4,2.3516]
[1724070957656,0.08322943,2592.9,2592.4,2.3516]
[1724070958060,1.128594,2593.2,2592.4,2.3516]
[1724070958243,0.08317577,2592.8,2592.4,2.3516]
[1724070958440,7.43,2593.3,2592.4,2.3516]
[1724070958657,0.08317577,2593.2,2592.4,2.3516]
[1724070959770,0.08317577,2593.2,2592.8,4.014]
[1724070959934,0.08317577,2593.2,2592.9,5.955]
[1724070960132,3.85521,2593.9,2592.9,5.955]
[1724070960466,3.85521,2593.9,2592.9,40.955]
[1724070960467,0.08317577,2593.8,2592.9,40.955]
[1724070962674,0.08317577,2593.8,2593.0,2.3846]
[1724070963573,2.54537577,2593.8,2593.1,2.3846]
[1724070963776,0.25453758,2593.7,2593.1,2.3846]
[1724070963982,0.25453758,2593.7,2592.8,5.4722]
[1724070964140,3.85591,2593.5,2592.8,5.4722]
[1724070964480,0.46905891,2593.4,2592.8,5.4722]
[1724070964637,0.46905891,2593.4,2592.8,2.4722]
[1724070965037,3.85618,2593.3,2592.6,2.3154]
[1724070965301,6.65331891,2593.4,2592.6,2.3154]
[1724070965302,3.93970042,2593.2,2592.6,2.3154]
[1724070965959,3.85639,2593.1,2592.6,2.3154]
[1724070966375,0.08324138,2593.0,2592.6,2.3154]
[1724070967744,6.18434,2593.4,2592.6,2.3154]
[1724070967940,0.08314598,2592.9,2592.6,2.3154]
[1724070968145,3.85604,2593.4,2592.6,2.3154]
[1724070968690,0.08312213,2593.3,2592.6,5.3154]
[1724070968869,0.08312213,2593.3,2592.7,0.55]
[1724070969071,11.54010758,2593.7,2592.7,3.55]
[1724070969312,0.08314598,2593.2,2592.7,4.39605222]
[1724070969599,9.49469776,2593.6,2592.7,3.55]
[1724070969747,0.08314598,2593.1,2592.7,4.39601356]
[1724070969950,5.18814853,2593.5,2592.7,3.55]
[1724070970303,1.08270963,2593.4,2592.7,4.3960377]
[1724070970454,0.08314598,2593.4,2592.7,4.3960377]
[1724070970654,15.14115,2593.7,2592.7,4.3960377]
[1724070970878,0.08314598,2593.6,2592.7,4.3960377]
[1724070971084,5.70494558,2593.6,2592.7,4.3960377]
[1724070971264,3.85581,2593.5,2592.7,3.55]
[1724070971469,1.7661596,2593.6,2592.7,3.55]
[1724070971801,3.93909598,2593.4,2592.7,3.0]
[1724070971996,3.85632,2593.2,2592.6,5.3154]
[1724070972290,2.3172,2593.4,2592.6,2.3154]
[1724070972291,3.85655,2593.0,2592.6,2.3154]
[1724070972664,3.85655,2593.0,2592.4,3.0]
[1724070972665,0.08311021,2592.9,2592.4,5.3202]
[1724070973265,4.71940523,2592.9,2592.4,5.3202]
[1724070973565,3.93980021,2592.9,2592.4,5.3202]
[1724070974317,0.08311021,2592.9,2592.4,5.3202]
[1724070974665,3.85639,2593.1,2592.4,5.3202]
[1724070974861,0.08311021,2593.0,2592.4,5.3202]
[1724070975074,0.47706023,2593.0,2592.4,5.3202]
[1724070976365,0.08311021,2593.0,2592.4,6.16650035]
[1724070976568,3.85609,2593.3,2592.4,6.16650035]
[1724070976869,0.08311021,2593.2,2592.4,6.16650035]
[1724070978514,0.08311021,2593.2,2592.4,5.3202]
[1724070978715,0.08311021,2593.2,2592.4,6.16649223]
[1724070978919,0.08311021,2593.2,2592.4,6.16647929]
[1724070979811,3.93938021,2593.2,2592.4,6.16647929]
[1724070979978,3.93938021,2593.2,2592.4,5.3202]
[1724070981343,2.4112,2593.0,2592.4,5.3202]
[1724070981548,6.26782,2593.0,2592.4,5.3202]
[1724070981732,3.93670973,2592.9,2592.4,5.3202]
[1724070984467,0.08001973,2592.9,2592.4,5.3202]
[1724070986259,3.85611,2593.3,2592.5,2.3566]
[1724070986560,0.08003766,2593.2,2592.5,2.3566]
[1724070987309,0.08003766,2593.2,2592.6,2.4678]
[1724070987505,3.85595,2593.4,2592.6,5.4678]
[1724070987748,0.08003168,2593.1,2592.6,5.4678]
[1724070987963,3.85595,2593.4,2592.6,2.4678]
[1724070988173,0.08006155,2593.0,2592.6,2.4678]
[1724070988350,3.85595,2593.4,2592.6,2.4678]
[1724070988534,0.08010339,2592.9,2592.6,2.4678]
[1724070988748,3.85595,2593.4,2592.6,2.4678]
[1724070988928,0.08010339,2592.8,2592.6,2.4678]
[1724070989129,3.85595,2593.4,2592.6,2.4678]
[1724070989541,0.08010339,2593.3,2592.6,2.4678]
[1724070991073,3.85586,2593.5,2592.7,2.4052]
[1724070991282,0.08020494,2593.4,2592.7,2.4052]
[1724070992386,3.93614494,2593.4,2592.7,2.4052]
[1724070993073,0.08020494,2593.4,2592.7,2.4052]
[1724070993485,0.08020494,2593.4,2592.9,2.4973]
[1724070993780,7.43,2593.7,2593.0,2.5744201]
[1724070993928,0.0802587,2593.3,2593.0,2.5744201]
[1724070994279,0.0802587,2593.2,2593.0,2.4973]
[1724070994584,7.43,2593.7,2593.1,2.4846]
[1724070994948,0.08026467,2593.6,2593.1,2.4846]
[1724070996733,0.08026467,2593.6,2593.2,2.2671]
[1724070996966,3.85508,2594.0,2593.2,2.2671]
[1724070997163,0.08026467,2593.5,2593.2,5.2671]
[1724070997365,3.85508,2594.0,2593.2,5.2671]
[1724070997874,0.08026467,2593.9,2593.2,2.2671]
[1724071001990,7.43,2594.2,2593.2,2.2671]
[1724071002192,3.85535,2593.8,2593.2,2.2671]
[1724071002398,0.385535,2593.7,2593.2,2.2671]
[1724071002614,3.85535,2593.8,2593.2,2.2671]
[1724071003096,0.08088581,2593.7,2593.2,2.2671]
[1724071003746,6.25154,2593.9,2593.2,2.2671]
[1724071003899,0.08088581,2593.6,2593.2,2.2671]
[1724071004245,0.08088581,2593.5,2593.2,2.2671]
[1724071004408,6.25154,2593.9,2593.2,2.2671]
[1724071004732,3.93629581,2593.8,2593.2,2.2671]
[1724071005041,0.08088581,2593.8,2593.2,2.2671]
[1724071005336,3.93623581,2593.8,2593.2,2.2671]
[1724071007398,7.79167581,2593.8,2593.2,2.2671]
[1724071007935,3.8555,2593.7,2593.2,2.2671]
[1724071008527,0.08088581,2593.6,2593.2,2.2671]
[1724071008842,3.85557,2593.7,2593.2,2.2671]
[1724071009145,3.93656581,2593.6,2593.0,2.4426]
[1724071009445,3.85582,2593.5,2593.0,2.4426]
[1724071009830,0.08088581,2593.4,2593.0,2.4426]
[1724071011336,6.26622,2593.2,2592.5,3.29458638]
[1724071011521,6.26622,2593.2,2592.5,2.4481]
[1724071011730,0.08071861,2593.1,2592.5,2.4481]
[1724071011976,3.93711861,2593.1,2592.5,2.4481]
[1724071012100,1.10105247,2593.1,2592.5,2.4481]
[1724071013347,4.95744247,2593.1,2592.5,2.4481]
[1724071014492,1.10105247,2593.1,2592.5,2.4481]
[1724071016530,0.08071861,2593.1,2592.5,2.4481]
[1724071016948,3.85609,2593.3,2592.5,6.29494898]
[1724071017118,0.07755058,2593.0,2592.6,3.0]
[1724071017320,3.85609,2593.3,2592.6,3.0]
[1724071017518,0.07755058,2592.9,2592.5,5.4481]
[1724071017704,1.744382,2593.3,2592.5,2.4481]
[1724071017903,0.07755058,2592.8,2592.5,3.29494898]
[1724071018127,13.58767,2593.4,2592.5,3.29494898]
[1724071018128,13.58767,2593.4,2592.6,3.0]
[1724071018342,13.58772,2593.4,2592.6,3.0]
[1724071018538,0.07755058,2593.3,2592.5,6.29494898]
[1724071018702,0.07755058,2593.3,2592.5,5.4481]
[1724071019050,0.07755058,2593.3,2592.6,3.0]
[1724071019226,0.07755058,2593.3,2592.5,3.29494898]
[1724071019444,0.07755058,2593.3,2592.6,3.0]
[1724071019642,0.07755058,2593.3,2592.5,2.4481]
[1724071020003,3.93372058,2593.3,2592.5,2.4481]
[1724071020203,3.93372058,2593.3,2592.4,3.84684898]
[1724071020204,3.85645,2593.1,2592.4,3.0]
[1724071020616,0.07755058,2593.0,2592.4,3.0]
[1724071022396,0.07755058,2593.0,2592.4,0.84650031]
[1724071022545,0.07755058,2593.0,2592.4,3.84650031]
[1724071022745,0.07755058,2593.0,2592.4,3.0]
[1724071023157,0.07755058,2593.0,2592.4,3.84650031]
[1724071023362,0.07755058,2593.0,2592.4,3.0]
[1724071023561,6.18704,2593.2,2592.4,3.84650031]
[1724071023788,7.97353578,2593.2,2592.4,3.0]
[1724071024259,0.07755058,2593.1,2592.4,3.0]
[1724071024443,3.8561,2593.3,2592.5,7.26009954]
[1724071024647,0.0749453,2593.2,2592.6,3.0]
[1724071025791,13.73584,2593.4,2592.6,3.0]
[1724071026108,9.8799,2593.4,2592.6,3.0]
[1724071026313,0.0749453,2593.3,2592.6,3.0]
[1724071026518,0.0749453,2593.3,2592.7,2.3955]
[1724071026812,0.0749453,2593.3,2592.7,37.3955]
[1724071026959,0.0749453,2593.3,2592.8,3.0]
[1724071027921,0.0749453,2593.3,2592.7,2.3955]
[1724071030577,0.0749453,2593.3,2593.0,1.673]
[1724071031706,0.0749453,2593.3,2592.8,1.673]
[1724071032024,2.4285,2593.2,2592.8,1.673]
[1724071032390,0.07505319,2593.1,2592.8,1.673]
[1724071032978,3.93144319,2593.1,2592.6,4.673]
[1724071033499,2.2575,2593.0,2592.6,1.673]
[1724071034025,0.07505319,2592.9,2592.6,1.673]
[1724071035901,0.07505319,2592.9,2592.6,4.673]
[1724071036106,0.07505319,2592.9,2592.7,3.0]
[1724071036506,0.07505319,2592.9,2592.6,1.673]
[1724071036928,0.07505319,2592.9,2592.6,4.673]
[1724071037135,0.07505319,2592.9,2592.7,3.0]
[1724071037732,0.07505319,2592.9,2592.6,1.673]
[1724071039499,0.07505319,2592.9,2592.6,4.673]
[1724071039836,0.07505319,2592.9,2592.6,1.673]
[1724071040327,0.07505319,2592.9,2592.6,4.673]
[1724071040531,0.07505319,2592.9,2592.7,3.0]
[1724071041022,0.07505319,2592.9,2592.6,1.673]
[1724071041425,0.07505319,2592.9,2592.6,4.673]
[1724071041629,0.07505319,2592.9,2592.7,3.0]
[1724071042119,0.07505319,2592.9,2592.6,1.673]
[1724071042810,3.85713,2592.6,2592.4,3.0]
[1724071043002,2.2915,2592.5,2592.1,2.52018794]
[1724071043338,6.22384516,2592.5,2591.9,2.52035695]
[1724071043539,6.22384516,2592.5,2591.9,1.673]
[1724071043742,3.85744,2592.4,2591.9,1.673]
[1724071044235,6.27248,2592.3,2591.9,1.673]
[1724071044738,0.07489733,2592.2,2591.9,1.673]
[1724071044937,6.27248,2592.3,2591.9,1.673]
[1724071045241,2.3902,2592.0,2591.7,1.673]
[1724071045743,0.07457955,2591.9,2591.7,1.673]
[1724071047136,2.3902,2592.0,2591.7,1.673]
[1724071047296,2.3902,2592.0,2591.9,1.673]
[1724071050303,7.71531,2592.3,2591.9,1.673]
[1724071050304,2.2725,2592.2,2591.9,1.673]
[1724071050651,0.07146377,2592.1,2591.9,1.673]
[1724071050817,0.07146377,2592.1,2591.6,0.56026739]
[1724071051013,6.13002,2592.4,2592.0,1.673]
[1724071051211,2.2725,2592.4,2592.0,1.673]
[1724071051425,0.07145843,2592.3,2592.1,1.673]
[1724071051737,3.85758,2592.3,2591.9,1.673]
[1724071051942,0.07145843,2592.2,2591.9,1.673]
[1724071052114,3.85758,2592.3,2591.9,1.673]
[1724071052294,0.07145843,2592.2,2591.9,1.673]
[1724071052494,3.85758,2592.3,2591.9,1.673]
[1724071052725,0.07145843,2592.2,2591.9,1.673]
[1724071052940,3.85758,2592.3,2591.9,1.673]
[1724071053250,6.12994,2592.4,2591.9,1.673]
[1724071053454,0.07145843,2592.2,2592.1,1.673]
[1724071053633,0.07145843,2592.2,2591.7,3.0]
[1724071053634,3.85758,2592.3,2591.7,3.0]
[1724071053798,3.85758,2592.3,2592.0,1.673]
[1724071054441,6.12994,2592.4,2592.0,1.673]
[1724071054943,0.07145843,2592.3,2592.0,1.673]
[1724071055542,2.2725,2592.4,2592.0,1.673]
[1724071056408,0.07145843,2592.3,2592.0,1.673]
[1724071056846,0.07145843,2592.3,2592.2,1.673]
[1724071057062,0.07145843,2592.3,2591.8,35.0]
[1724071057256,3.85714,2592.6,2591.8,35.0]
[1724071057257,3.85714,2592.6,2592.2,1.673]
[1724071057610,0.07147045,2592.5,2592.2,1.673]
[1724071058850,6.34178,2592.7,2591.9,5.3922]
[1724071058851,2.4848,2592.7,2591.9,5.3922]
[1724071059052,0.07147045,2592.4,2592.1,1.673]
[1724071059223,3.85735,2592.5,2591.9,4.673]
[1724071059425,0.07156656,2592.3,2591.9,4.673]
[1724071059642,2.4828,2592.4,2592.0,3.0]
[1724071059813,2.4828,2592.4,2591.9,1.673]
[1724071059814,0.07156656,2592.2,2591.9,1.673]
[1724071060013,2.4828,2592.4,2591.9,1.673]
[1724071060252,0.07156656,2592.1,2591.9,1.673]
[1724071060425,2.4828,2592.4,2591.9,1.673]
[1724071060628,0.07156656,2592.0,2591.9,1.673]
[1724071061510,2.4828,2592.4,2591.9,1.673]
[1724071061708,0.07156656,2592.0,2591.9,1.673]
[1724071061959,9.7463,2592.6,2591.9,1.673]
[1724071062161,9.7463,2592.6,2592.1,1.673]
[1724071062657,15.349518,2592.6,2592.1,1.673]
[1724071064574,0.07156656,2592.5,2592.1,1.673]
[1724071066867,2.3681,2592.3,2591.8,0.84712256]
[1724071067089,2.3681,2592.3,2591.6,1.673]
[1724071067315,3.92941666,2592.2,2591.6,1.673]
[1724071067610,3.85779,2592.2,2591.6,1.673]
[1724071067809,3.85788,2592.1,2591.6,1.673]
[1724071068115,2.4631,2592.0,2591.6,1.673]
[1724071068583,0.07162666,2591.9,2591.6,1.673]
[1724071069611,3.92988666,2591.9,2591.5,3.84752479]
[1724071069907,4.56914733,2591.9,2591.4,41.673]
[1724071070511,3.85832,2591.8,2591.4,41.673]
[1724071070814,6.3367864,2591.7,2591.4,40.0]
[1724071071911,2.4783164,2591.7,2591.4,40.0]
[1724071074895,6.3367864,2591.7,2591.4,40.0]
[1724071075290,3.85871,2591.6,2591.4,40.0]
[1724071075974,2.5119164,2591.5,2591.4,40.0]
[1724071076279,6.3706764,2591.5,2591.4,40.0]
[1724071077104,10.2294364,2591.5,2591.4,40.0]
[1724071078271,15.7611964,2591.5,2591.4,40.0]
[1724071078823,19.6199564,2591.5,2591.4,40.0]
[1724071079126,22.43705614,2591.5,2591.4,40.0]
[1724071079330,22.43705614,2591.5,2591.4,38.51693625]
[1724071079331,27.05305614,2591.5,2591.4,38.51693625]
[1724071080599,29.40405614,2591.5,2591.4,38.51693625]
[1724071081645,32.40405614,2591.5,2591.4,38.51693625]
[1724071081788,32.40405614,2591.5,2591.4,33.84079892]
[1724071085000,36.26281614,2591.5,2591.4,33.84079892]
[1724071088632,36.26281614,2591.5,2591.4,24.19349892]
[1724071088821,38.68062101,2591.5,2591.4,24.19349892]
[1724071089017,36.26281614,2591.5,2591.4,24.19349892]
[1724071089199,36.26281614,2591.5,2591.4,18.40511892]
[1724071089404,36.26281614,2591.5,2591.4,14.54619892]
[1724071090240,36.26281614,2591.5,2591.4,4.89889892]
[1724071091092,36.96281614,2591.5,2591.4,4.89889892]
[1724071091294,36.96281614,2591.5,2591.4,8.92e-06]
[1724071091700,3.8611,2590.0,2589.5,2.4352]
[1724071091927,3.86096,2590.1,2589.5,2.4352]
[1724071091928,3.86115,2589.9,2589.5,2.4352]
[1724071092252,3.86135,2589.8,2589.5,2.4352]
[1724071092407,3.86145,2589.7,2589.5,2.4352]
[1724071092604,3.93018555,2589.7,2589.5,2.4352]
[1724071092849,3.93018555,2589.7,2589.1,2.2644]
[1724071092991,3.86183,2589.5,2589.1,2.2644]
[1724071093192,0.06871148,2589.6,2589.1,2.82466739]
[1724071093443,7.72304,2589.7,2589.1,2.82466739]
[1724071093444,3.86151,2589.7,2589.1,2.82466739]
[1724071093596,0.06871148,2589.5,2589.1,2.82466739]
[1724071093940,3.86151,2589.7,2589.1,3.10713413]
[1724071094142,0.06871148,2589.4,2589.1,3.10713413]
[1724071094437,0.193787,2591.0,2589.1,2.2644]
[1724071094438,0.06871148,2589.3,2589.1,2.2644]
[1724071094656,3.86211,2589.3,2588.7,2.2893]
[1724071094862,0.06871148,2589.2,2588.7,2.2893]
[1724071095199,6.22094,2589.4,2588.4,2.4436]
[1724071095429,3.86272,2588.9,2588.4,2.4436]
[1724071095739,3.86294,2588.7,2588.4,2.4436]
[1724071095941,3.86294,2588.7,2587.9,0.51107245]
[1724071095942,3.86324,2588.5,2588.0,2.4436]
[1724071096645,0.06871148,2588.4,2588.0,2.4436]
[1724071097855,3.86354,2588.3,2587.4,2.4469]
[1724071098050,3.86324,2588.5,2587.5,0.30071674]
[1724071098198,0.06871148,2588.2,2587.6,2.4469]
[1724071098404,3.86342,2588.4,2587.6,3.07768841]
[1724071098754,0.06871148,2588.1,2587.7,3.0]
[1724071098922,3.86342,2588.4,2587.7,3.0]
[1724071099124,0.06871148,2588.0,2587.7,3.63784052]
[1724071099335,3.86338,2588.5,2587.8,2.2854]
[1724071099541,0.06871148,2587.9,2587.8,2.2854]
[1724071099803,3.8634,2588.4,2587.8,2.2854]
[1724071100004,0.06604982,2587.9,2587.8,2.2854]
[1724071100247,3.86356,2588.3,2587.8,2.2854]
[1724071100549,0.06604982,2587.9,2587.8,2.2854]
[1724071100860,0.06603174,2587.9,2587.5,2.414]
[1724071101373,0.45903391,2587.9,2587.2,2.4914]
[1724071102064,4.32317391,2587.9,2587.2,2.4914]
[1724071102627,4.68302639,2587.8,2587.2,2.4914]
[1724071103021,0.06603174,2587.7,2587.2,2.4914]
[1724071103247,0.06603174,2587.7,2587.2,4.024]
[1724071103561,7.43,2587.9,2587.3,5.4855]
[1724071103757,0.06285508,2587.6,2587.3,5.4855]
[1724071104065,7.43,2587.9,2587.3,5.4855]
[1724071104066,0.06285508,2587.5,2587.4,0.95095]
[1724071104276,7.43,2587.9,2587.3,5.4855]
[1724071104565,0.06285508,2587.5,2587.3,5.4855]
[1724071104799,7.43,2587.9,2587.3,5.4855]
[1724071105066,0.06289735,2587.4,2587.3,5.4855]
[1724071105273,7.43,2587.9,2587.3,5.4855]
[1724071105470,0.06094043,2587.4,2587.3,3.03405]
[1724071105644,7.43,2587.9,2587.3,5.4855]
[1724071105840,0.06100082,2587.4,2587.3,5.4855]
[1724071106057,7.43,2587.9,2587.3,5.4855]
[1724071106253,0.06100082,2587.4,2587.3,2.4855]
[1724071106445,7.43,2587.9,2587.3,2.4855]
[1724071106646,0.06100082,2587.4,2587.3,2.4855]
[1724071106868,7.43,2587.9,2587.3,2.4855]
[1724071107194,0.06100082,2587.4,2587.3,2.4855]
[1724071107684,7.43,2587.9,2587.3,2.4855]
[1724071107993,0.06100082,2587.4,2587.3,2.4855]
[1724071108363,11.29413,2587.9,2587.3,2.4855]
[1724071108543,0.06100082,2587.8,2587.3,2.4855]
[1724071110963,0.06100082,2587.8,2587.4,2.4413]
[1724071111180,0.06100082,2587.8,2587.6,2.2552]
[1724071111381,0.05910311,2587.8,2587.7,2.2552]
[1724071111584,0.05910311,2587.8,2587.7,5.2552]
[1724071111959,0.05910311,2587.8,2587.7,2.2552]
[1724071112170,0.05910311,2587.8,2587.7,3.02462]
[1724071112391,0.05910311,2587.8,2587.7,6.57462]
[1724071112594,0.0552148,2587.8,2587.7,6.57462]
[1724071112795,3.8628,2588.8,2587.8,2.4443]
[1724071113005,7.43,2588.9,2587.8,5.4443]
[1724071113206,7.43,2588.9,2588.0,2.4443]
[1724071113500,7.43,2588.9,2588.1,2.9943]
[1724071113646,7.43,2588.9,2588.2,3.0]
[1724071114052,7.43,2588.9,2588.3,2.4841]
[1724071116373,9.7319,2589.3,2588.3,2.4841]
[1724071116697,7.43,2589.3,2588.5,2.4265]
[1724071116897,7.43,2589.3,2588.5,5.4265]
[1724071119898,3.86236,2589.1,2588.5,5.4265]
[1724071120206,7.43,2589.3,2588.5,2.4265]
[1724071120361,8.173,2589.3,2588.5,2.4265]
[1724071121167,7.43,2589.3,2588.5,2.4265]
[1724071122103,11.29206,2589.3,2588.5,2.4265]
[1724071122812,3.86226,2589.2,2588.5,2.4265]
[1724071123100,3.86235,2589.1,2588.5,2.4265]
[1724071124505,3.92049929,2589.0,2588.5,2.4265]
[1724071125699,0.05799929,2589.0,2588.5,2.4265]
[1724071128901,0.05837999,2588.9,2588.5,2.4265]
[1724071129108,7.43,2589.3,2588.5,2.4265]
[1724071129109,11.29206,2589.3,2588.5,2.4265]
[1724071129313,0.05837999,2588.8,2588.5,2.66915]
[1724071129497,11.29206,2589.3,2588.5,2.4265]
[1724071129665,0.05837999,2588.7,2588.5,2.4265]
[1724071129861,15.15424,2589.3,2588.5,2.4265]
[1724071130094,0.05837999,2588.6,2588.5,2.4265]
[1724071130276,4.991396,2589.2,2588.5,2.4265]
[1724071131143,0.05837999,2589.1,2588.5,2.4265]
[1724071132823,7.43,2589.6,2588.5,2.4265]
[1724071133009,0.05837999,2589.0,2588.7,2.2645]
[1724071133219,8.656,2589.6,2588.7,5.2645]
[1724071133415,6.39801186,2589.5,2588.7,5.2645]
[1724071133635,3.86197,2589.4,2588.7,5.2645]
[1724071133931,3.86204,2589.3,2588.7,2.2645]
[1724071134098,0.386204,2589.2,2588.7,2.2645]
[1724071134426,0.05850686,2589.1,2588.7,2.2645]
[1724071136682,6.339595,2589.5,2588.7,2.2645]
[1724071136881,0.05850686,2589.0,2588.7,2.2645]
[1724071137114,3.8619,2589.4,2588.7,2.2645]
[1724071137433,1.4995595,2589.4,2588.7,2.2645]
[1724071137645,0.05850686,2589.3,2588.7,2.2645]
[1724071137787,0.05850686,2589.3,2588.8,0.07724712]
[1724071137987,7.43,2589.6,2588.6,2.3916]
[1724071138221,0.05879078,2589.5,2588.6,2.3916]
[1724071138998,3.92060078,2589.5,2588.6,2.3916]
[1724071140134,0.05879078,2589.5,2588.6,2.3916]
[1724071140315,1.82091386,2589.5,2588.7,2.4873]
[1724071140625,1.82091386,2589.5,2588.8,2.4873]
[1724071140926,5.68268386,2589.5,2588.8,2.4873]
[1724071141230,3.92056078,2589.5,2588.8,2.4873]
[1724071141692,0.05879078,2589.5,2588.8,2.4873]
[1724071142291,3.92066078,2589.5,2588.8,2.4873]
[1724071144833,3.92061078,2589.5,2588.8,2.4873]
[1724071145007,1.13506108,2589.4,2588.8,2.4873]
[1724071145200,0.05702442,2589.3,2588.8,2.4873]
[1724071145736,3.91913442,2589.3,2588.8,2.4873]
[1724071145891,3.86245,2589.1,2588.8,2.4873]
[1724071146087,3.86245,2589.1,2588.5,2.4089]
[1724071146088,3.86257,2589.0,2588.5,2.4089]
[1724071146316,3.86265,2588.9,2588.5,5.4089]
[1724071146517,3.86265,2588.9,2588.5,2.4089]
[1724071146735,0.48761636,2588.8,2588.5,2.4089]
[1724071147885,0.05702442,2588.8,2588.5,2.4089]
[1724071148090,4.248755,2589.0,2588.5,2.4089]
[1724071148291,0.05702442,2588.7,2588.5,2.4089]
[1724071148528,4.99700108,2589.4,2588.5,2.4089]
[1724071148712,0.05702442,2588.6,2588.5,2.94979]
[1724071149037,7.43,2589.3,2588.6,2.3504]
[1724071149346,16.12168,2589.6,2588.8,2.3504]
[1724071149347,11.29168,2589.6,2588.8,2.3504]
[1724071149642,1.612168,2589.5,2588.8,2.3504]
[1724071149994,3.86137,2589.8,2588.9,2.3504]
[1724071150235,11.29108,2590.0,2588.9,2.3504]
[1724071150471,11.29108,2590.0,2589.0,2.3295]
[1724071150472,3.86116,2589.9,2589.0,2.3295]
[1724071150638,4.990268,2589.9,2589.0,2.3295]
[1724071150838,1.129108,2589.9,2589.0,2.3295]
[1724071151159,3.86109,2590.0,2589.1,4.024]
[1724071151331,3.86109,2590.0,2589.2,2.3273]
[1724071151528,3.86109,2590.0,2589.2,5.3273]
[1724071151742,3.86128,2589.9,2589.2,5.3273]
[1724071151945,4.633547,2589.8,2589.2,2.3273]
[1724071152142,3.86131,2589.8,2589.2,2.3273]
[1724071154486,0.05741741,2589.7,2589.2,2.3273]
[1724071156483,11.29108,2590.0,2589.2,2.3273]
[1724071156639,0.05741741,2589.6,2589.2,2.3273]
[1724071156838,0.386108,2589.9,2589.2,2.3273]
[1724071157039,0.05741741,2589.8,2589.2,2.3273]
[1724071158947,0.05741741,2589.8,2589.2,5.3273]
[1724071160258,1.23087795,2589.8,2589.2,5.3273]
[1724071160958,0.05741741,2589.8,2589.2,3.0]
[1724071161273,0.05741741,2589.8,2589.5,2.3579]
[1724071161475,3.86051,2590.4,2589.5,2.3579]
[1724071161694,0.05744763,2589.7,2589.5,2.3579]
[1724071161842,0.386051,2590.3,2589.5,2.3579]
[1724071162039,0.05744763,2590.2,2589.5,5.3579]
[1724071162383,0.05744763,2590.2,2589.7,4.024]
[1724071162540,0.05744763,2590.2,2589.8,2.3582]
[1724071162945,7.43,2590.5,2589.8,2.3582]
[1724071163192,0.05744763,2590.1,2589.8,2.3582]
[1724071163363,1.129022,2590.4,2589.8,2.3582]
[1724071163879,0.05744763,2590.3,2589.8,2.3582]
[1724071167154,0.05744763,2590.3,2589.8,5.3582]
[1724071169437,0.05744763,2590.3,2590.0,4.024]
[1724071169725,7.43,2590.8,2590.0,4.024]
[1724071169726,11.28988,2590.8,2590.1,2.9261515]
[1724071169927,0.05835416,2590.2,2590.1,2.2873]
[1724071170226,11.28988,2590.8,2590.1,2.2873]
[1724071170535,11.28988,2590.8,2590.1,2.91843]
[1724071170736,0.05849915,2590.7,2590.1,2.2873]
[1724071170927,3.91849915,2590.7,2590.1,2.2873]
[1724071173034,0.05849915,2590.7,2590.1,2.2873]
[1724071173511,0.05849915,2590.7,2590.1,2.51603]
[1724071174306,0.05849915,2590.7,2590.1,2.2873]
[1724071174506,3.91852915,2590.7,2590.1,5.2873]
[1724071174898,3.91852915,2590.7,2590.1,2.2873]
[1724071176733,0.05849915,2590.7,2590.1,2.2873]
[1724071177599,0.05849915,2590.7,2590.1,2.51603]
[1724071177800,2.402,2591.0,2590.1,2.51603]
[1724071178017,7.71941,2590.9,2590.2,3.0]
[1724071178334,7.77850716,2590.9,2590.2,3.0]
[1724071178626,3.85983,2590.8,2590.1,5.2873]
[1724071178828,4.87788072,2590.8,2590.1,5.2873]
[1724071179030,0.05910924,2590.7,2590.1,5.2873]
[1724071181037,0.05910924,2590.7,2590.5,6.16783]
[1724071181189,0.05910924,2590.7,2590.6,2.8576]